bitfinex/quotes_BTCUSD_20241003
["timestamp","ask_amount","ask_price","bid_price","bid_amount"]
[1727966235265,0.005542,60505.0,60504.0,0.44566396]
[1727966235266,0.002818,60505.0,60504.0,0.44566396]
[1727966235490,0.002818,60505.0,60504.0,0.56801249]
[1727966235491,0.006542,60505.0,60504.0,0.56801249]
[1727966235723,0.011542,60505.0,60504.0,0.35380145]
[1727966235987,0.011542,60505.0,60504.0,0.013]
[1727966236216,0.27610718,60505.0,60504.0,0.013]
[1727966236454,0.27610718,60505.0,60504.0,0.11089732]
[1727966236707,0.47758272,60505.0,60504.0,0.013]
[1727966237165,0.43829389,60505.0,60504.0,0.08649012]
[1727966237420,0.43829389,60505.0,60504.0,0.1111183]
[1727966237665,0.43829389,60505.0,60504.0,0.013]
[1727966237905,0.27510718,60505.0,60504.0,0.02174782]
[1727966238164,0.27410718,60505.0,60504.0,0.00874782]
[1727966238382,0.60565918,60505.0,60504.0,0.007]
[1727966238614,0.10983218,60505.0,60504.0,0.012]
[1727966238866,0.003724,60494.0,60493.0,0.330613]
[1727966239129,0.182199,60505.0,60489.0,0.265319]
[1727966239130,0.008724,60490.0,60489.0,0.265319]
[1727966239361,0.008724,60490.0,60489.0,0.1]
[1727966239819,0.008724,60490.0,60489.0,0.265319]
[1727966240294,0.008724,60488.0,60487.0,0.1533985]
[1727966240537,0.174048,60487.0,60486.0,0.001632]
[1727966240761,0.27331523,60487.0,60486.0,0.001632]
[1727966241003,0.27331523,60487.0,60486.0,0.05075986]
[1727966241239,0.27331523,60487.0,60486.0,0.05075294]
[1727966241487,0.27331523,60487.0,60486.0,0.12441834]
[1727966241748,0.29549779,60487.0,60486.0,0.1243755]
[1727966242004,0.43650194,60487.0,60486.0,0.07528438]
[1727966242264,0.43650194,60487.0,60486.0,0.001632]
[1727966242479,0.43650194,60487.0,60486.0,0.004632]
[1727966242765,0.41923471,60487.0,60486.0,0.004632]
[1727966242991,0.10788255,60487.0,60486.0,0.001632]
[1727966243211,0.10788255,60487.0,60486.0,0.006632]
[1727966243433,0.090724,60487.0,60486.0,0.171959]
[1727966243878,0.008724,60487.0,60486.0,0.168959]
[1727966244632,0.174048,60487.0,60486.0,0.001632]
[1727966244853,0.008724,60487.0,60486.0,0.003632]
[1727966245110,0.008724,60487.0,60486.0,0.168959]
[1727966245358,0.008724,60487.0,60486.0,0.175959]
[1727966245359,0.009724,60487.0,60486.0,0.175959]
[1727966245596,0.008724,60487.0,60486.0,0.166959]
[1727966245835,0.008724,60487.0,60486.0,0.175959]
[1727966245836,0.009724,60487.0,60486.0,0.175959]
[1727966246080,0.010724,60487.0,60486.0,0.185959]
[1727966246309,0.008724,60487.0,60486.0,0.166959]
[1727966246558,0.0765,60495.0,60487.0,0.265324]
[1727966246559,0.008724,60488.0,60487.0,0.265324]
[1727966247056,0.003724,60488.0,60487.0,0.46171071]
[1727966247287,0.003724,60490.0,60489.0,0.265319]
[1727966247555,0.005,60494.0,60489.0,0.265319]
[1727966247556,0.005,60494.0,60493.0,0.265308]
[1727966247777,0.32682116,60504.0,60499.0,0.595873]
[1727966247778,0.003724,60500.0,60499.0,0.595873]
[1727966248002,0.003724,60500.0,60499.0,0.75905971]
[1727966248505,0.009542,60505.0,60504.0,0.265278]
[1727966248764,0.009542,60505.0,60504.0,0.42846471]
[1727966248997,0.009542,60505.0,60504.0,0.265278]
[1727966249288,0.005818,60505.0,60504.0,0.42846471]
[1727966249530,0.009542,60505.0,60504.0,0.42846471]
[1727966249778,0.000818,60505.0,60504.0,0.42846471]
[1727966250000,0.005542,60505.0,60504.0,0.46966471]
[1727966250233,0.001818,60505.0,60504.0,0.87390383]
[1727966250714,0.000818,60505.0,60504.0,0.86590383]
[1727966250945,0.002818,60505.0,60504.0,0.88390383]
[1727966251195,0.002818,60505.0,60504.0,0.91710383]
[1727966251493,0.001818,60505.0,60504.0,0.87690383]
[1727966251717,0.001818,60505.0,60504.0,0.43946471]
[1727966252192,0.001818,60505.0,60504.0,0.91310383]
[1727966252437,0.25744516,60519.0,60518.0,0.26524]
[1727966252660,0.25744516,60519.0,60518.0,0.86586583]
[1727966252893,0.25744516,60519.0,60518.0,0.42842671]
[1727966253370,0.25744516,60519.0,60518.0,0.26524]
[1727966253614,0.008724,60512.0,60511.0,0.330517]
[1727966253867,0.008724,60512.0,60511.0,0.165259]
[1727966254400,0.008724,60507.0,60506.0,0.330544]
[1727966254622,0.0819,60514.0,60493.0,0.165308]
[1727966254623,0.003724,60494.0,60493.0,0.165308]
[1727966254851,0.008724,60494.0,60493.0,0.41402916]
[1727966255083,0.008724,60494.0,60493.0,0.16968728]
[1727966255550,0.008724,60495.0,60494.0,0.198505]
[1727966255795,0.008724,60495.0,60494.0,0.36169171]
[1727966256015,0.008724,60495.0,60494.0,0.32849171]
[1727966256510,0.008724,60495.0,60494.0,0.165305]
[1727966256751,0.008724,60495.0,60494.0,0.42849171]
[1727966257019,0.003724,60497.0,60496.0,0.595899]
[1727966257241,0.003724,60497.0,60496.0,0.75908571]
[1727966258449,0.008724,60497.0,60496.0,0.595899]
[1727966258888,0.009724,60497.0,60496.0,0.609899]
[1727966259106,0.010724,60497.0,60496.0,0.619899]
[1727966260057,0.010724,60497.0,60496.0,0.024]
[1727966260293,0.27976552,60497.0,60496.0,0.024]
[1727966260789,0.253821,60497.0,60496.0,0.024]
[1727966261528,0.174048,60487.0,60486.0,0.001632]
[1727966262103,0.174048,60487.0,60486.0,0.01109085]
[1727966262104,0.008724,60487.0,60486.0,0.01109085]
[1727966262296,0.008724,60487.0,60486.0,0.22597534]
[1727966262538,0.008724,60487.0,60486.0,0.33977242]
[1727966262777,0.003724,60489.0,60488.0,0.265322]
[1727966263028,0.003724,60489.0,60488.0,0.42850871]
[1727966263264,0.003724,60489.0,60488.0,0.43812088]
[1727966263506,0.0778,60497.0,60488.0,0.43812088]
[1727966263507,0.008724,60490.0,60489.0,0.265319]
[1727966263958,0.008724,60490.0,60489.0,0.27493008]
[1727966264179,0.008724,60490.0,60489.0,0.10961108]
[1727966264408,0.008724,60490.0,60489.0,0.00961108]
[1727966264696,0.17404,60490.0,60489.0,0.00961108]
[1727966264929,0.17404,60490.0,60486.0,0.011632]
[1727966264930,0.174043,60489.0,60486.0,0.011632]
[1727966265160,0.005,60487.0,60486.0,0.001632]
[1727966265669,0.008724,60487.0,60486.0,0.001632]
[1727966265914,0.008724,60487.0,60486.0,0.166959]
[1727966266179,0.003724,60487.0,60486.0,0.47953534]
[1727966266408,0.002,60490.0,60487.0,0.430648]
[1727966266409,0.001,60490.0,60487.0,0.430648]
[1727966266642,0.009724,60490.0,60489.0,0.265319]
[1727966267609,0.008724,60490.0,60489.0,0.265319]
[1727966268588,0.24872116,60494.0,60486.0,0.009632]
[1727966268589,0.008724,60487.0,60486.0,0.176959]
[1727966268808,0.008724,60487.0,60486.0,0.266959]
[1727966269818,0.008724,60487.0,60486.0,0.001632]
[1727966270038,0.174048,60487.0,60486.0,0.001632]
[1727966271209,0.176048,60487.0,60486.0,0.024632]
[1727966271429,0.176048,60487.0,60486.0,0.014632]
[1727966271676,0.174048,60487.0,60486.0,0.001632]
[1727966271906,0.175048,60487.0,60486.0,0.011632]
[1727966272164,0.176048,60487.0,60486.0,0.021632]
[1727966272643,0.32142303,60487.0,60486.0,0.021632]
[1727966272896,0.51443471,60487.0,60486.0,0.021632]
[1727966273134,0.51443471,60487.0,60469.0,0.00434034]
[1727966273135,0.008724,60478.0,60469.0,0.00434034]
[1727966273362,0.008724,60478.0,60465.0,0.24872116]
[1727966273363,0.70125504,60478.0,60465.0,0.24872116]
[1727966273620,0.70325504,60478.0,60465.0,0.24872116]
[1727966273872,0.70325504,60478.0,60462.0,0.001632]
[1727966274611,0.169114,60463.0,60462.0,0.001632]
[1727966274835,0.249414,60463.0,60462.0,0.001632]
[1727966275335,0.084024,60463.0,60462.0,0.00986896]
[1727966275575,0.08377391,60463.0,60462.0,0.17526196]
[1727966276065,0.00847391,60463.0,60462.0,0.17526196]
[1727966276508,0.00847391,60463.0,60462.0,0.44544867]
[1727966276509,0.006724,60463.0,60462.0,0.44544867]
[1727966276729,0.01147391,60463.0,60462.0,0.44544867]
[1727966276959,0.003,60463.0,60462.0,0.47864867]
[1727966277660,0.411866,60484.0,60462.0,0.47864867]
[1727966277661,0.003724,60472.0,60470.0,0.330742]
[1727966277924,0.003724,60472.0,60471.0,0.42855471]
[1727966278172,0.003724,60472.0,60471.0,0.43675287]
[1727966278390,0.0812,60484.0,60471.0,0.43675287]
[1727966278391,0.003724,60473.0,60472.0,0.265365]
[1727966278665,0.003724,60473.0,60472.0,0.46175171]
[1727966278921,0.00847391,60473.0,60472.0,0.43674877]
[1727966279142,0.00847391,60473.0,60472.0,0.10819706]
[1727966279362,0.00847391,60473.0,60472.0,0.43674877]
[1727966279584,0.003724,60473.0,60472.0,0.49036048]
[1727966279833,0.00847391,60473.0,60472.0,0.27778414]
[1727966280081,0.17383691,60473.0,60472.0,0.00819706]
[1727966280306,0.00847391,60473.0,60472.0,0.00819706]
[1727966280560,0.00847391,60473.0,60472.0,0.165365]
[1727966281022,0.003724,60473.0,60472.0,0.33673344]
[1727966281294,0.01047391,60473.0,60472.0,0.44273344]
[1727966281528,0.01047391,60473.0,60472.0,0.01418173]
[1727966281794,0.33802362,60473.0,60472.0,0.00818173]
[1727966282033,0.60747682,60473.0,60472.0,0.00818173]
[1727966282260,0.60747682,60473.0,60462.0,0.001632]
[1727966282261,0.17386391,60463.0,60462.0,0.001632]
[1727966282725,0.33905062,60463.0,60462.0,0.001632]
[1727966282977,0.41385062,60463.0,60462.0,0.001632]
[1727966283470,0.41585062,60463.0,60462.0,0.001632]
[1727966283918,0.57903733,60463.0,60462.0,0.001632]
[1727966284405,0.66257178,60463.0,60462.0,0.001632]
[1727966284661,0.41585062,60463.0,60462.0,0.001632]
[1727966285611,0.41385062,60463.0,60462.0,0.001632]
[1727966285826,0.68257178,60463.0,60462.0,0.001632]
[1727966286296,0.45685062,60463.0,60462.0,0.001632]
[1727966286553,0.26866391,60463.0,60462.0,0.001632]
[1727966286792,0.10327391,60463.0,60462.0,0.001632]
[1727966287245,0.10327391,60463.0,60462.0,0.17544801]
[1727966287497,0.09227391,60463.0,60462.0,0.01005501]
[1727966287721,0.02147391,60463.0,60462.0,0.17544801]
[1727966287964,0.01447391,60463.0,60462.0,0.17544801]
[1727966288233,0.00474991,60467.0,60466.0,0.165382]
[1727966288464,0.00847391,60469.0,60468.0,0.70372115]
[1727966288731,0.00847391,60469.0,60468.0,0.43693855]
[1727966288981,0.00474991,60470.0,60469.0,0.265373]
[1727966289241,0.25719507,60470.0,60469.0,0.75930671]
[1727966289465,0.00847391,60470.0,60469.0,0.76760831]
[1727966290362,0.00847391,60470.0,60469.0,0.0083016]
[1727966290622,0.2077646,60470.0,60469.0,0.0083016]
[1727966290850,0.00847391,60470.0,60469.0,0.265373]
[1727966291091,0.00847391,60470.0,60469.0,0.2736746]
[1727966291360,0.17384491,60470.0,60469.0,0.0083016]
[1727966291615,0.17484491,60470.0,60469.0,0.0083016]
[1727966291835,0.00847391,60463.0,60461.0,0.165595]
[1727966292125,0.00847391,60463.0,60462.0,0.167025]
[1727966292315,0.00474991,60463.0,60462.0,0.6693168]
[1727966292567,0.003724,60465.0,60462.0,0.1731398]
[1727966292783,0.01147391,60470.0,60469.0,0.265373]
[1727966293002,0.006724,60470.0,60469.0,0.42855971]
[1727966293224,0.006724,60470.0,60469.0,0.436863]
[1727966293481,0.01147391,60470.0,60469.0,0.436863]
[1727966293750,0.003,60470.0,60469.0,0.436863]
[1727966293970,0.24872116,60485.0,60469.0,0.436863]
[1727966293971,0.003724,60476.0,60472.0,0.03317]
[1727966294226,0.24872116,60485.0,60469.0,0.27349]
[1727966294227,0.00847391,60478.0,60477.0,0.265352]
[1727966294716,0.00474991,60478.0,60477.0,0.27362471]
[1727966294941,0.00847391,60482.0,60481.0,0.265341]
[1727966295177,0.003724,60484.0,60483.0,0.165335]
[1727966295400,0.25244516,60485.0,60484.0,0.265332]
[1727966295882,0.00847391,60491.0,60484.0,0.27125396]
[1727966296167,0.57924716,60510.0,60493.0,0.1]
[1727966296168,0.00474991,60497.0,60493.0,0.1]
[1727966296471,0.00474991,60497.0,60496.0,0.495898]
[1727966296646,0.003724,60500.0,60499.0,0.165291]
[1727966297086,0.00847391,60500.0,60499.0,0.17330989]
[1727966297320,0.003724,60500.0,60499.0,0.17330989]
[1727966297889,0.003724,60500.0,60499.0,0.3364966]
[1727966297892,0.003724,60501.0,60499.0,0.70955075]
[1727966298102,0.00847391,60501.0,60500.0,0.42847571]
[1727966298333,0.003724,60502.0,60501.0,0.165286]
[1727966298541,0.00847391,60502.0,60501.0,0.32847271]
[1727966298773,0.00847391,60502.0,60501.0,0.33648941]
[1727966298976,0.003724,60503.0,60502.0,0.265283]
[1727966299181,0.00847391,60503.0,60502.0,0.42846971]
[1727966299388,0.00847391,60504.0,60502.0,0.27120231]
[1727966299601,0.00847391,60503.0,60502.0,0.2732986]
[1727966300234,0.003724,60503.0,60502.0,0.2732986]
[1727966300459,0.003724,60512.0,60504.0,0.265278]
[1727966300685,0.003724,60517.0,60515.0,0.1]
[1727966300905,0.24872116,60518.0,60517.0,0.265242]
[1727966301134,0.003724,60531.0,60526.0,0.298388]
[1727966301375,0.00474991,60533.0,60526.0,0.89991986]
[1727966301376,0.00847391,60533.0,60526.0,0.89991986]
[1727966301585,0.00847391,60533.0,60532.0,0.265201]
[1727966301809,0.00847391,60541.0,60533.0,0.1]
[1727966302025,0.077318,60545.0,60543.0,0.165171]
[1727966302026,0.003724,60544.0,60543.0,0.165171]
[1727966302261,0.00847391,60544.0,60543.0,0.27271703]
[1727966302709,0.000818,60545.0,60544.0,0.265169]
[1727966302957,0.000818,60545.0,60544.0,0.70351415]
[1727966303216,0.00929191,60545.0,60544.0,0.43590065]
[1727966303637,0.000818,60545.0,60544.0,0.43590065]
[1727966303861,0.00929191,60545.0,60544.0,0.17271394]
[1727966304094,0.00929191,60545.0,60544.0,0.35332717]
[1727966304339,0.00929191,60545.0,60544.0,0.19014046]
[1727966304568,0.00929191,60545.0,60544.0,0.17614046]
[1727966304798,0.00929191,60545.0,60544.0,0.01697146]
[1727966305032,0.02640542,60545.0,60544.0,0.17614046]
[1727966305483,0.02640542,60545.0,60544.0,0.01497146]
[1727966305484,0.00929191,60545.0,60544.0,0.01497146]
[1727966305704,0.00929191,60545.0,60544.0,0.01797146]
[1727966306179,0.00929191,60545.0,60544.0,0.18314046]
[1727966306434,0.00929191,60545.0,60544.0,0.01497146]
[1727966306680,0.00929191,60545.0,60544.0,0.02197146]
[1727966307168,0.00929191,60545.0,60544.0,0.01097146]
[1727966307413,0.17545791,60545.0,60544.0,0.01897146]
[1727966307697,0.00929191,60545.0,60544.0,0.01097146]
[1727966307944,0.01029191,60545.0,60544.0,0.87870086]
[1727966308194,0.005542,60545.0,60544.0,0.87870086]
[1727966308438,0.00929191,60545.0,60544.0,0.88072032]
[1727966308680,0.005542,60545.0,60544.0,0.92289032]
[1727966308929,0.005542,60545.0,60544.0,0.88072032]
[1727966308930,0.00929191,60545.0,60544.0,0.88072032]
[1727966309168,0.00929191,60545.0,60544.0,0.43937517]
[1727966309412,0.00929191,60545.0,60544.0,0.44637517]
[1727966309918,0.00929191,60545.0,60544.0,0.43937517]
[1727966310168,0.00929191,60545.0,60544.0,0.29018846]
[1727966310415,0.01029191,60545.0,60544.0,0.13801946]
[1727966310651,0.01029191,60545.0,60544.0,0.11101946]
[1727966310652,0.00929191,60545.0,60544.0,0.11101946]
[1727966310895,0.00929191,60545.0,60544.0,0.03401946]
[1727966310896,0.01029191,60545.0,60544.0,0.03401946]
[1727966311152,0.17445791,60545.0,60544.0,0.02101946]
[1727966311396,0.27605534,60545.0,60544.0,0.02101946]
[1727966311650,0.54293188,60545.0,60544.0,0.03401946]
[1727966311909,0.27405534,60545.0,60544.0,0.01]
[1727966312155,0.27505534,60545.0,60544.0,0.013]
[1727966312404,0.57049307,60545.0,60544.0,0.013]
[1727966312649,0.57049307,60545.0,60544.0,0.027]
[1727966312897,0.57049307,60545.0,60544.0,0.013]
[1727966313141,0.55339564,60545.0,60544.0,0.013]
[1727966313382,0.55339564,60545.0,60527.0,0.24872116]
[1727966313383,0.003724,60528.0,60527.0,0.24872116]
[1727966313648,0.00847391,60521.0,60520.0,0.24872116]
[1727966313896,0.330438,60526.0,60520.0,0.85025302]
[1727966313897,0.00474991,60526.0,60520.0,0.85025302]
[1727966314147,0.003724,60528.0,60527.0,0.165215]
[1727966314395,0.00847391,60534.0,60533.0,0.495596]
[1727966314640,0.00847391,60534.0,60533.0,0.165199]
[1727966315131,0.24872116,60544.0,60533.0,0.265199]
[1727966315132,0.00847391,60535.0,60533.0,0.265199]
[1727966315376,0.003724,60535.0,60534.0,0.265196]
[1727966315623,0.25244516,60544.0,60534.0,0.1]
[1727966315890,0.23181907,60544.0,60535.0,0.16318671]
[1727966316154,0.003724,60538.0,60537.0,0.265186]
[1727966316909,0.003724,60538.0,60537.0,0.1]
[1727966317161,0.55843607,60544.0,60533.0,0.00432137]
[1727966317162,0.003724,60534.0,60533.0,0.00432137]
[1727966317656,0.003724,60534.0,60531.0,0.165202]
[1727966317916,0.003724,60529.0,60520.0,0.363634]
[1727966318155,0.003724,60521.0,60520.0,0.65888471]
[1727966318389,0.0997,60540.0,60520.0,0.65888471]
[1727966318390,0.003724,60522.0,60520.0,0.16749077]
[1727966318649,0.003724,60526.0,60525.0,0.16522]
[1727966318857,0.003724,60526.0,60525.0,0.77715667]
[1727966319137,0.003724,60526.0,60525.0,0.94237667]
[1727966319391,0.003724,60526.0,60525.0,1.04237667]
[1727966319644,0.003724,60526.0,60525.0,0.75884771]
[1727966319885,0.003724,60522.0,60521.0,0.430461]
[1727966320140,0.003724,60522.0,60521.0,0.75887871]
[1727966320384,0.003724,60527.0,60525.0,0.1]
[1727966320622,0.003724,60527.0,60524.0,0.330446]
[1727966320623,0.003724,60527.0,60526.0,1.03277183]
[1727966322702,0.24872116,60533.0,60528.0,0.265212]
[1727966322703,0.003724,60529.0,60528.0,0.265212]
[1727966322905,0.003724,60533.0,60532.0,0.165201]
[1727966323192,0.24872116,60537.0,60536.0,0.26519]
[1727966323412,0.24872116,60537.0,60536.0,0.86549554]
[1727966323638,0.25244516,60537.0,60536.0,0.86549554]
[1727966323842,0.003724,60537.0,60536.0,0.86549554]
[1727966324531,0.003724,60537.0,60536.0,0.1]
[1727966324755,0.22809507,60544.0,60532.0,0.604603]
[1727966324756,0.004724,60533.0,60532.0,0.604603]
[1727966324985,0.003724,60533.0,60532.0,0.75878971]
[1727966325214,0.003724,60533.0,60532.0,0.59997538]
[1727966325938,0.55843507,60544.0,60533.0,0.265199]
[1727966325939,0.003724,60534.0,60533.0,0.265199]
[1727966326169,0.003724,60538.0,60537.0,0.265188]
[1727966326391,0.22809507,60544.0,60537.0,0.265188]
[1727966326392,0.003724,60541.0,60540.0,0.26518]
[1727966327826,0.003724,60543.0,60541.0,0.1]
[1727966328070,0.003724,60542.0,60541.0,0.265177]
[1727966328770,0.003724,60542.0,60541.0,0.27617666]
[1727966329248,0.003724,60542.0,60541.0,0.43936337]
[1727966329771,0.003724,60542.0,60541.0,0.44372969]
[1727966330511,0.000818,60545.0,60544.0,0.265169]
[1727966330758,0.000818,60545.0,60544.0,0.42835571]
[1727966330996,0.000818,60545.0,60544.0,0.43935044]
[1727966332581,0.000818,60545.0,60544.0,0.45135044]
[1727966333789,0.004542,60545.0,60544.0,0.45135044]
[1727966334011,0.004542,60545.0,60544.0,0.46535044]
[1727966334969,0.004542,60545.0,60544.0,0.03699473]
[1727966335173,0.18693054,60545.0,60544.0,0.03699473]
[1727966335452,0.26903054,60545.0,60544.0,0.03699473]
[1727966335657,0.26903054,60545.0,60544.0,0.026]
[1727966335789,0.26903054,60545.0,60544.0,0.014]
[1727966335992,0.26903054,60545.0,60544.0,0.02491535]
[1727966336223,0.26903054,60545.0,60544.0,0.03091535]
[1727966336602,0.26903054,60545.0,60544.0,0.006]
[1727966336819,0.26903054,60545.0,60539.0,0.00431372]
[1727966336820,0.003724,60541.0,60540.0,0.165178]
[1727966337077,0.02094654,60541.0,60540.0,0.165178]
[1727966337301,0.02094654,60541.0,60540.0,0.17609992]
[1727966339382,0.02094654,60541.0,60540.0,0.01092192]
[1727966339607,0.02190088,60541.0,60540.0,0.18310192]
[1727966339862,0.02190088,60541.0,60540.0,0.007]
[1727966340121,0.169901,60541.0,60540.0,0.02393087]
[1727966340571,0.0218992,60541.0,60540.0,0.013]
[1727966340811,0.0218992,60541.0,60540.0,0.17818]
[1727966341267,0.0218992,60541.0,60540.0,0.18919936]
[1727966342030,0.0218782,60541.0,60540.0,0.18919936]
[1727966342348,0.0181542,60541.0,60540.0,0.35238607]
[1727966342608,0.001,60541.0,60540.0,0.50113051]
[1727966342826,0.001,60541.0,60540.0,0.52550273]
[1727966343053,0.001,60541.0,60540.0,0.54987495]
[1727966343276,0.001,60541.0,60540.0,0.45238607]
[1727966343534,0.001,60541.0,60540.0,0.56824717]
[1727966343749,0.003724,60544.0,60543.0,0.165171]
[1727966344013,0.003724,60544.0,60543.0,0.76061589]
[1727966344264,0.003724,60544.0,60543.0,0.48817716]
[1727966344520,0.003724,60544.0,60543.0,0.43937475]
[1727966344770,0.003724,60544.0,60543.0,0.27618804]
[1727966345000,0.003724,60544.0,60543.0,0.01101704]
[1727966345227,0.18595111,60544.0,60543.0,0.01101704]
[1727966345505,0.168901,60541.0,60540.0,0.005]
[1727966345764,0.168901,60541.0,60532.0,0.001634]
[1727966345765,0.245723,60533.0,60532.0,0.001634]
[1727966345998,0.341623,60533.0,60532.0,0.001634]
[1727966346515,0.50480971,60533.0,60532.0,0.001634]
[1727966346743,0.52186954,60533.0,60532.0,0.001634]
[1727966346971,0.35868283,60533.0,60532.0,0.001634]
[1727966347208,0.35495883,60533.0,60532.0,0.001634]
[1727966347429,0.35868283,60533.0,60532.0,0.001634]
[1727966347688,0.09758383,60533.0,60532.0,0.167835]
[1727966347938,0.09758383,60533.0,60532.0,0.55229077]
[1727966347939,0.004724,60533.0,60532.0,0.55229077]
[1727966348173,0.004724,60533.0,60532.0,0.56330928]
[1727966348410,0.004724,60533.0,60532.0,0.55969014]
[1727966348684,0.003724,60533.0,60532.0,0.72187685]
[1727966348914,0.003724,60533.0,60532.0,0.76978408]
[1727966349186,0.000818,60545.0,60538.0,0.430369]
[1727966349426,0.000818,60545.0,60544.0,0.165169]
[1727966349655,0.000818,60545.0,60544.0,0.265169]
[1727966349882,0.000818,60545.0,60544.0,0.27619611]
[1727966350608,0.000818,60545.0,60544.0,0.46238282]
[1727966350848,0.24872116,60558.0,60557.0,0.54858877]
[1727966351088,0.02670525,60564.0,60557.0,0.60481248]
[1727966351089,0.000818,60564.0,60557.0,0.60481248]
[1727966351329,0.000818,60564.0,60563.0,0.63057009]
[1727966351546,0.000818,60564.0,60563.0,0.79372762]
[1727966352033,0.000818,60564.0,60563.0,0.46147371]
[1727966352262,0.000818,60564.0,60562.0,0.1]
[1727966352493,0.000818,60564.0,60563.0,0.1]
[1727966352737,0.000818,60564.0,60563.0,0.42830371]
[1727966352978,0.000818,60564.0,60563.0,0.71175948]
[1727966353501,0.000818,60564.0,60563.0,0.71975948]
[1727966353763,0.000818,60564.0,60563.0,0.44230371]
[1727966353981,0.000818,60564.0,60563.0,0.42830371]
[1727966354253,0.000818,60564.0,60563.0,0.117]
[1727966354495,0.000818,60564.0,60563.0,0.017]
[1727966354496,0.165932,60564.0,60563.0,0.017]
[1727966354715,0.165932,60564.0,60563.0,0.005]
[1727966354949,0.165932,60564.0,60563.0,0.015]
[1727966355186,0.000818,60564.0,60563.0,0.170117]
[1727966355411,0.000818,60564.0,60563.0,0.42830371]
[1727966355856,0.000818,60564.0,60563.0,0.43630371]
[1727966356349,0.000818,60564.0,60563.0,0.55045671]
[1727966356825,0.000818,60564.0,60563.0,0.44230371]
[1727966357300,0.000818,60564.0,60563.0,0.47347371]
[1727966357760,0.000818,60564.0,60563.0,0.49647371]
[1727966357997,0.24953916,60573.0,60572.0,0.58171777]
[1727966357998,0.000818,60573.0,60572.0,0.58171777]
[1727966358256,0.000818,60573.0,60572.0,0.321262]
[1727966359207,0.000818,60573.0,60572.0,0.48444871]
[1727966359436,0.000818,60573.0,60572.0,0.49844871]
[1727966359918,0.000818,60573.0,60572.0,0.47544871]
[1727966360165,0.000818,60573.0,60572.0,0.44227871]
[1727966360418,0.000818,60573.0,60572.0,0.64900371]
[1727966360653,0.000818,60573.0,60572.0,0.67200371]
[1727966360896,0.000818,60573.0,60572.0,0.65016871]
[1727966361129,0.000818,60573.0,60572.0,0.48944871]
[1727966361386,0.000818,60573.0,60572.0,0.45627871]
[1727966362097,0.000818,60573.0,60572.0,0.19725323]
[1727966362341,0.082018,60573.0,60572.0,0.03216123]
[1727966362559,0.247108,60573.0,60572.0,0.014]
[1727966362791,0.247108,60573.0,60560.0,0.165124]
[1727966362792,0.1233175,60573.0,60560.0,0.165124]
[1727966363020,0.1233175,60573.0,60556.0,0.00430548]
[1727966363021,0.28650421,60573.0,60556.0,0.00430548]
[1727966363243,0.16512,60562.0,60558.0,0.16513]
[1727966363468,0.24872116,60569.0,60535.0,0.10235912]
[1727966363713,0.24872116,60569.0,60553.0,0.165142]
[1727966363714,0.165136,60557.0,60553.0,0.165142]
[1727966363955,0.165135,60557.0,60553.0,0.165143]
[1727966364206,0.330221,60566.0,60556.0,0.1]
[1727966364464,0.24872116,60562.0,60555.0,0.1]
[1727966364682,0.24872116,60569.0,60561.0,0.330243]
[1727966364910,0.41382216,60569.0,60564.0,0.165112]
[1727966365194,0.41382216,60569.0,60558.0,0.1]
[1727966365195,0.24872116,60569.0,60558.0,0.1]
[1727966365436,0.24872116,60569.0,60565.0,0.330219]
[1727966365670,0.24872116,60569.0,60562.0,0.330237]
[1727966365671,0.082018,60573.0,60572.0,0.165092]
[1727966366110,0.082018,60573.0,60561.0,0.001]
[1727966366111,0.165118,60563.0,60561.0,0.001]
[1727966366340,0.11517372,60573.0,60561.0,0.001]
[1727966366585,0.330198,60570.0,60565.0,0.16511]
[1727966366808,0.24872116,60571.0,60561.0,0.001]
[1727966367051,0.082018,60573.0,60561.0,0.33124]
[1727966367299,0.082018,60573.0,60562.0,0.16318671]
[1727966367300,0.01694149,60572.0,60562.0,0.16318671]
[1727966367511,0.082018,60573.0,60562.0,0.16318671]
[1727966367512,0.24872116,60570.0,60562.0,0.16318671]
[1727966368012,0.24872116,60570.0,60565.0,0.330219]
[1727966368469,0.24872116,60570.0,60568.0,0.165102]
[1727966369152,0.001,60570.0,60567.0,0.330211]
[1727966369390,0.001,60570.0,60556.0,0.34872116]
[1727966369611,0.082018,60573.0,60564.0,0.330225]
[1727966369827,0.24872116,60570.0,60568.0,0.170101]
[1727966370062,0.24872116,60570.0,60568.0,0.005]
[1727966370308,0.1651,60569.0,60568.0,0.005]
[1727966370557,0.28072192,60569.0,60568.0,0.005]
[1727966370806,0.1651,60569.0,60568.0,0.005]
[1727966371041,0.33028671,60569.0,60568.0,0.005]
[1727966371303,0.002,60566.0,60565.0,0.007]
[1727966371586,0.002,60566.0,60544.0,0.330337]
[1727966371587,0.165141,60555.0,60553.0,0.24872116]
[1727966371788,0.16518671,60566.0,60548.0,0.00433884]
[1727966371789,0.002,60562.0,60548.0,0.00433884]
[1727966372042,0.1732,60568.0,60542.0,0.330344]
[1727966372043,0.002,60565.0,60547.0,0.24872116]
[1727966372275,0.002,60565.0,60542.0,0.330348]
[1727966372276,0.165135,60557.0,60552.0,0.165144]
[1727966372539,0.330265,60558.0,60551.0,0.330297]
[1727966372791,0.330265,60558.0,60548.0,0.330311]
[1727966372792,0.330259,60559.0,60553.0,0.005]
[1727966373254,0.165141,60554.0,60553.0,0.005]
[1727966374236,0.165141,60554.0,60550.0,0.165151]
[1727966374476,0.165141,60554.0,60551.0,0.165149]
[1727966374701,0.165144,60553.0,60552.0,0.003]
[1727966375175,0.165159,60548.0,60541.0,0.330352]
[1727966375400,0.165161,60547.0,60543.0,0.165171]
[1727966375632,0.165161,60547.0,60541.0,0.495527]
[1727966375633,0.165167,60545.0,60541.0,0.495527]
[1727966375859,0.165167,60545.0,60542.0,0.165173]
[1727966376118,0.165177,60541.0,60540.0,0.001634]
[1727966377124,0.65918487,60541.0,60540.0,0.001634]
[1727966377366,0.41046371,60541.0,60540.0,0.001634]
[1727966377815,0.41046371,60541.0,60540.0,0.006634]